bitfinex/quotes_BTCUSD_20250617
["timestamp","ask_amount","ask_price","bid_price","bid_amount"]
[1750165951795,0.59925944,105650.0,105640.0,0.16324]
[1750165952056,0.19878815,105640.0,105630.0,0.23010668]
[1750165952286,0.01893266,105630.0,105620.0,0.27852809]
[1750165952519,0.0094662,105630.0,105620.0,0.53000985]
[1750165952714,0.58123757,105640.0,105630.0,0.21774033]
[1750165952980,0.58123757,105640.0,105630.0,0.38781037]
[1750165953268,0.06883779,105640.0,105630.0,0.39727675]
[1750165953520,0.05937177,105640.0,105630.0,0.40127675]
[1750165953748,0.25816001,105640.0,105630.0,0.40427675]
[1750165953981,0.26762612,105640.0,105630.0,0.40427675]
[1750165954212,0.26762612,105640.0,105630.0,0.38534391]
[1750165954443,0.26762612,105640.0,105630.0,0.39481055]
[1750165954681,0.59070368,105640.0,105630.0,0.45380879]
[1750165955154,0.25816028,105640.0,105630.0,0.46327525]
[1750165955436,0.25816028,105640.0,105630.0,0.47274163]
[1750165955873,0.58123784,105640.0,105630.0,0.47274163]
[1750165955875,0.58123784,105640.0,105630.0,0.46327525]
[1750165956369,0.5174292,105650.0,105640.0,0.00946611]
[1750165956589,0.0189315,105640.0,105630.0,0.5177079]
[1750165956803,0.02839671,105640.0,105630.0,0.5177079]
[1750165957052,0.23665097,105640.0,105630.0,0.5177079]
[1750165957273,0.22718558,105640.0,105630.0,0.31083533]
[1750165957483,0.20825426,105640.0,105630.0,0.43487533]
[1750165957690,0.51239978,105640.0,105630.0,0.42540842]
[1750165957908,0.51239978,105640.0,105630.0,0.43487542]
[1750165958134,0.51239978,105640.0,105630.0,0.44134233]
[1750165958591,0.57177137,105640.0,105630.0,0.4602757]
[1750165958862,0.25815983,105640.0,105630.0,0.46974208]
[1750165959112,0.26762594,105640.0,105630.0,0.46974208]
[1750165959326,0.35147454,105640.0,105630.0,0.53094208]
[1750165959548,0.01893096,105640.0,105630.0,0.63018384]
[1750165959771,0.01893105,105640.0,105630.0,0.63018384]
[1750165959990,0.03786273,105640.0,105630.0,0.63018384]
[1750165960423,0.22718495,105640.0,105630.0,0.63018384]
[1750165960642,0.23665106,105640.0,105630.0,0.63018392]
[1750165960855,0.51766212,105640.0,105630.0,0.63018392]
[1750165961293,0.34200924,105640.0,105630.0,0.6301833]
[1750165961796,0.2082539,105640.0,105630.0,0.6301833]
[1750165962021,0.22718531,105640.0,105630.0,0.6301833]
[1750165962249,0.54079784,105640.0,105630.0,0.43487524]
[1750165962470,0.54079784,105640.0,105630.0,0.27963524]
[1750165962720,0.53133191,105640.0,105630.0,0.007]
[1750165962950,0.63657191,105640.0,105630.0,0.20580714]
[1750165963188,0.60477191,105640.0,105630.0,0.21527396]
[1750165963496,0.59530589,105640.0,105630.0,0.20580714]
[1750165963767,0.59530589,105640.0,105630.0,0.007]
[1750165963970,0.62690589,105640.0,105630.0,0.007]
[1750165964186,0.62690589,105640.0,105630.0,0.1592]
[1750165964402,0.62690589,105640.0,105630.0,0.004]
[1750165964614,0.62690589,105640.0,105630.0,0.006]
[1750165965082,0.62690589,105640.0,105630.0,0.002]
[1750165965389,0.62690589,105640.0,105630.0,0.005]
[1750165965590,0.62690589,105640.0,105630.0,0.19434014]
[1750165965806,0.62690589,105640.0,105630.0,0.20380714]
[1750165966246,0.62690589,105640.0,105630.0,0.19434014]
[1750165966498,0.62690589,105640.0,105630.0,0.20380714]
[1750165966766,0.55486589,105640.0,105630.0,0.22274078]
[1750165966980,0.56230589,105640.0,105630.0,0.22274078]
[1750165967471,0.23922833,105640.0,105630.0,0.22274078]
[1750165967784,0.24869417,105640.0,105630.0,0.31508343]
[1750165968061,0.24869417,105640.0,105630.0,0.36491662]
[1750165968318,0.06883734,105640.0,105630.0,0.364916]
[1750165968538,0.07830336,105640.0,105630.0,0.364916]
[1750165968764,0.26762558,105640.0,105630.0,0.364916]
[1750165969684,0.07830336,105640.0,105630.0,0.364916]
[1750165969932,0.06883734,105640.0,105630.0,0.364916]
[1750165970128,0.26762567,105640.0,105630.0,0.35544962]
[1750165970628,0.01893141,105640.0,105630.0,0.36491608]
[1750165970851,0.07830336,105640.0,105630.0,0.36491555]
[1750165971076,0.26762558,105640.0,105630.0,0.36491555]
[1750165971345,0.07830336,105640.0,105630.0,0.36491555]
[1750165971864,0.05937141,105640.0,105630.0,0.36491555]
[1750165972131,0.05937096,105640.0,105630.0,0.36491555]
[1750165972554,0.07830219,105640.0,105630.0,0.36491555]
[1750165972998,0.02839635,105640.0,105630.0,0.36491555]
[1750165973242,0.06883635,105640.0,105630.0,0.36491555]
[1750165973475,0.01893069,105640.0,105630.0,0.36491555]
[1750165973721,0.05937069,105640.0,105630.0,0.36491555]
[1750165973930,0.0783021,105640.0,105630.0,0.36491555]
[1750165974175,0.07830192,105640.0,105630.0,0.36491555]
[1750165974415,0.06883626,105640.0,105630.0,0.36491555]
[1750165975054,0.08776794,105640.0,105630.0,0.36491555]
[1750165975316,0.06883626,105640.0,105630.0,0.36491555]
[1750165975582,0.07830201,105640.0,105630.0,0.36491555]
[1750165975808,0.01893069,105640.0,105630.0,0.46115731]
[1750165976000,0.06883626,105640.0,105630.0,0.46115731]
[1750165976755,0.07830201,105640.0,105630.0,0.46115731]
[1750165977210,0.07830192,105640.0,105630.0,0.46115731]
[1750165977921,0.08776776,105640.0,105630.0,0.46115731]
[1750165978427,0.07830192,105640.0,105630.0,0.46115731]
[1750165978684,0.58123694,105640.0,105630.0,0.25608279]
[1750165978928,0.57177137,105640.0,105630.0,0.42074979]
[1750165979161,0.57177137,105640.0,105630.0,0.26554979]
[1750165979404,0.57177137,105640.0,105630.0,0.4302167]
[1750165980125,0.57177137,105640.0,105630.0,0.43968352]
[1750165980355,0.57177137,105640.0,105630.0,0.44915025]
[1750165980592,0.56230571,105640.0,105630.0,0.43968352]
[1750165981088,0.55283978,105640.0,105630.0,0.26554979]
[1750165981316,0.55283978,105640.0,105630.0,0.35900714]
[1750165981772,0.55283978,105640.0,105630.0,0.36847405]
[1750165982471,0.55283978,105640.0,105630.0,0.37794087]
[1750165983892,0.55283978,105640.0,105630.0,0.3874076]
[1750165984820,0.57177173,105640.0,105630.0,0.42997406]
[1750165985050,0.5907035,105640.0,105630.0,0.42997406]
[1750165985503,0.40138128,105640.0,105630.0,0.42997344]
[1750165985733,0.38244915,105640.0,105630.0,0.42997344]
[1750165985960,0.39191454,105640.0,105630.0,0.46237344]
[1750165986410,0.39191454,105640.0,105630.0,0.52754593]
[1750165986631,0.35147454,105640.0,105630.0,0.52754593]
[1750165986861,0.39191454,105640.0,105630.0,0.52754593]
[1750165987080,0.40138056,105640.0,105630.0,0.52754593]
[1750165987269,0.36094056,105640.0,105630.0,0.52754593]
[1750165987528,0.40138056,105640.0,105630.0,0.52754593]
[1750165987743,0.34200861,105640.0,105630.0,0.52754593]
[1750165987993,0.02397731,105650.0,105640.0,0.20825399]
[1750165988279,0.57679917,105650.0,105640.0,0.19878824]
[1750165988505,0.57679917,105650.0,105640.0,0.20825417]
[1750165988725,0.57679917,105650.0,105640.0,0.21772001]
[1750165989382,0.57679917,105650.0,105640.0,0.20925417]
[1750165990044,0.57679917,105650.0,105640.0,0.21872001]
[1750165990294,0.57679917,105650.0,105640.0,0.21823059]
[1750165990509,0.57679917,105650.0,105640.0,0.21923059]
[1750165990952,0.25372161,105650.0,105640.0,0.22869625]
[1750165991182,0.57679917,105650.0,105640.0,0.22869625]
[1750165992505,0.57679917,105650.0,105640.0,0.21923059]
[1750165992719,0.56733432,105650.0,105640.0,0.20029882]
[1750165992931,0.5578692,105650.0,105640.0,0.002]
[1750165995708,0.5578692,105650.0,105640.0,0.19132222]
[1750165995910,0.5578692,105650.0,105640.0,0.002]
[1750165997176,0.5578692,105650.0,105640.0,0.19132222]
[1750165998113,0.5578692,105650.0,105640.0,0.002]
[1750166000647,0.6215692,105650.0,105640.0,0.002]
[1750166001182,0.5578692,105650.0,105640.0,0.002]
[1750166001676,0.6212692,105650.0,105640.0,0.002]
[1750166001911,0.5578692,105650.0,105640.0,0.002]
[1750166002592,0.6222692,105650.0,105640.0,0.002]
[1750166002828,0.81466018,105650.0,105640.0,0.002]
[1750166003541,0.71851096,105650.0,105640.0,0.002]
[1750166004053,0.71346362,105650.0,105640.0,0.002]
[1750166005450,0.67302362,105650.0,105640.0,0.002]
[1750166005671,0.83618362,105650.0,105640.0,0.002]
[1750166007018,0.86768362,105650.0,105640.0,0.002]
[1750166007276,1.20768362,105650.0,105640.0,0.002]
[1750166008884,1.14418362,105650.0,105640.0,0.002]
[1750166013588,1.24033284,105650.0,105640.0,0.002]
[1750166014726,1.14418362,105650.0,105640.0,0.002]
[1750166015382,0.94862362,105650.0,105640.0,0.002]
[1750166015598,1.14414362,105650.0,105640.0,0.002]
[1750166016897,0.82106606,105650.0,105640.0,0.002]
[1750166017091,1.14414362,105650.0,105640.0,0.002]
[1750166017815,1.14414362,105650.0,105640.0,0.0341]
[1750166018741,0.66594606,105650.0,105640.0,0.0341]
[1750166018959,1.14414362,105650.0,105640.0,0.0341]
[1750166020102,0.82106606,105650.0,105640.0,0.0341]
[1750166020326,1.14414362,105650.0,105640.0,0.0341]
[1750166021176,1.14414362,105650.0,105640.0,0.067]
[1750166024603,1.24029284,105650.0,105640.0,0.002]
[1750166024825,1.494521,105650.0,105640.0,0.002]
[1750166025080,1.87029559,105650.0,105640.0,0.002]
[1750166025303,1.19442863,105630.0,105620.0,0.0314]
[1750166025530,1.38990863,105630.0,105620.0,0.0314]
[1750166025752,0.19882579,105620.0,105610.0,0.0641]
[1750166025974,0.52190335,105620.0,105610.0,0.09984769]
[1750166026424,0.52190335,105620.0,105610.0,0.0641]
[1750166027077,0.52190335,105620.0,105610.0,0.0651]
[1750166028227,0.53157828,105620.0,105610.0,0.0651]
[1750166028488,0.58144591,105620.0,105610.0,0.27341333]
[1750166028737,0.58144591,105620.0,105610.0,0.26394471]
[1750166028967,0.37315249,105620.0,105610.0,0.0651]
[1750166029198,0.53157828,105620.0,105610.0,0.2639448]
[1750166029430,0.57197828,105620.0,105610.0,0.27341342]
[1750166029906,0.53157828,105620.0,105610.0,0.27341342]
[1750166030162,0.57197828,105620.0,105610.0,0.27341342]
[1750166030860,0.57197828,105620.0,105610.0,0.27341351]
[1750166031091,0.57193828,105620.0,105610.0,0.29235066]
[1750166031554,0.57193828,105620.0,105610.0,0.3018191]
[1750166032047,0.57193828,105620.0,105610.0,0.29235066]
[1750166032760,0.56247056,105620.0,105610.0,0.28288213]
[1750166033240,0.56247056,105620.0,105610.0,0.27341351]
[1750166033456,0.56247056,105620.0,105610.0,0.28288213]
[1750166033946,0.56247056,105620.0,105610.0,0.29235066]
[1750166034165,0.57193828,105620.0,105610.0,0.3018191]
[1750166034383,0.57193828,105620.0,105610.0,0.3018182]
[1750166034595,0.39204766,105620.0,105610.0,0.30181775]
[1750166034788,0.40151547,105620.0,105610.0,0.30181775]
[1750166035012,0.59087354,105620.0,105610.0,0.30181775]
[1750166035455,0.60034144,105620.0,105610.0,0.30181775]
[1750166035900,0.00946718,105620.0,105610.0,0.48708195]
[1750166036149,0.3420121,105620.0,105610.0,0.48708195]
[1750166036361,0.68201058,105630.0,105620.0,0.26939324]
[1750166036587,0.7318374,105630.0,105620.0,0.27886051]
[1750166036807,0.74130431,105630.0,105620.0,0.27886051]
[1750166037242,0.89975145,105630.0,105620.0,0.26939324]
[1750166037475,0.7318374,105630.0,105620.0,0.28832787]
[1750166037693,0.74130431,105630.0,105620.0,0.28832787]
[1750166037925,0.93064445,105630.0,105620.0,0.28832787]
[1750166038557,0.94011145,105630.0,105620.0,0.28832787]
[1750166038783,0.94011145,105630.0,105620.0,0.25992579]
[1750166038998,0.94011145,105630.0,105620.0,0.26939333]
[1750166039216,0.93064507,105630.0,105620.0,0.26939342]
[1750166039432,0.93064507,105630.0,105620.0,0.27886096]
[1750166039680,0.92117843,105630.0,105620.0,0.2693936]
[1750166039953,0.92117843,105630.0,105620.0,0.25992588]
[1750166040413,0.68201129,105630.0,105620.0,0.3258891]
[1750166040668,0.54827387,105630.0,105620.0,0.33535673]
[1750166040892,0.88081843,105630.0,105620.0,0.32588928]
[1750166041117,0.87135161,105630.0,105620.0,0.32588928]
[1750166041358,0.87135161,105630.0,105620.0,0.33535682]
[1750166041585,0.87135161,105630.0,105620.0,0.34482427]
[1750166043574,0.87135161,105630.0,105620.0,0.31642165]
[1750166044032,0.53135161,105630.0,105620.0,0.33535682]
[1750166044243,0.53135161,105630.0,105620.0,0.34482427]
[1750166044927,0.53135161,105630.0,105620.0,0.33535682]
[1750166045167,0.5218847,105630.0,105620.0,0.32588928]
[1750166045606,0.5124177,105630.0,105620.0,0.30695402]
[1750166045802,0.5124177,105630.0,105620.0,0.32588955]
[1750166046059,0.5124177,105630.0,105620.0,0.33535718]
[1750166048519,0.54081807,105630.0,105620.0,0.33535673]
[1750166049130,0.54081807,105630.0,105620.0,0.34482409]
[1750166049390,0.34201093,105630.0,105620.0,0.34482409]
[1750166049609,0.34201093,105630.0,105620.0,0.34482355]
[1750166049610,0.35147722,105630.0,105620.0,0.34482355]
[1750166049836,0.35147722,105630.0,105620.0,0.33535628]
[1750166049837,0.55975127,105630.0,105620.0,0.33535628]
[1750166050056,0.55028498,105630.0,105620.0,0.30695384]
[1750166050280,0.54081843,105630.0,105620.0,0.30695384]
[1750166051261,0.54081843,105630.0,105620.0,0.31642138]
[1750166051481,0.54081843,105630.0,105620.0,0.30695384]
[1750166051718,0.53135161,105630.0,105620.0,0.30695384]
[1750166052396,0.85442917,105630.0,105620.0,0.0611]
[1750166052622,0.83549526,105630.0,105620.0,0.41496597]
[1750166053613,0.83549526,105630.0,105620.0,0.42443378]
[1750166054485,0.83549526,105630.0,105620.0,0.26939378]
[1750166055117,0.83549526,105630.0,105620.0,0.2788615]
[1750166056248,0.00946691,105630.0,105620.0,0.29779667]
[1750166056477,0.3918374,105630.0,105620.0,0.36201742]
[1750166058104,0.33254394,105630.0,105620.0,0.36201742]
[1750166058324,0.51223087,105640.0,105630.0,0.28194007]
[1750166058567,0.51223087,105640.0,105630.0,0.46886791]
[1750166058568,0.5027653,105640.0,105630.0,0.46886791]
[1750166058776,0.83530843,105640.0,105630.0,0.46886791]
[1750166058998,0.81637756,105640.0,105630.0,0.56510967]
[1750166059232,0.4933,105640.0,105630.0,0.56510967]
[1750166060123,0.50276539,105640.0,105630.0,0.56510967]
[1750166060334,0.50276539,105640.0,105630.0,0.56910967]
[1750166060543,0.00946539,105640.0,105630.0,0.56910967]
[1750166060759,0.068755,105650.0,105640.0,0.28211974]
[1750166060995,0.40132729,105650.0,105640.0,0.29158522]
[1750166061214,0.59063159,105650.0,105640.0,0.29158522]
[1750166061429,0.40132729,105650.0,105640.0,0.29158522]
[1750166061903,0.37282205,105650.0,105640.0,0.3558066]
[1750166062111,0.39175166,105650.0,105640.0,0.3558066]
[1750166062756,0.40121651,105650.0,105640.0,0.3558066]
[1750166063218,0.39175148,105650.0,105640.0,0.3558066]
[1750166063647,0.37282214,105650.0,105640.0,0.3558066]
[1750166063856,0.3822869,105650.0,105640.0,0.3558066]
[1750166064501,0.04974458,105650.0,105640.0,0.3558066]
[1750166064711,0.3822869,105650.0,105640.0,0.3558066]
[1750166064927,0.38228681,105650.0,105640.0,0.3558066]
[1750166065139,0.04974458,105650.0,105640.0,0.3558066]
[1750166065589,0.05920925,105650.0,105640.0,0.3558066]
[1750166065806,0.39175157,105650.0,105640.0,0.3558066]
[1750166066059,0.38228681,105650.0,105640.0,0.3558066]
[1750166066715,0.39175166,105650.0,105640.0,0.3558066]
[1750166066940,0.40121669,105650.0,105640.0,0.3558066]
[1750166067201,0.40121669,105650.0,105640.0,0.5107666]
[1750166068056,0.58105641,105650.0,105640.0,0.3463413]
[1750166068544,0.58105641,105650.0,105640.0,0.5013013]
[1750166068760,0.39175211,105650.0,105640.0,0.51076678]
[1750166070299,0.05920952,105650.0,105640.0,0.51076678]
[1750166070520,0.39175202,105650.0,105640.0,0.51076678]
[1750166070954,0.59998647,105650.0,105640.0,0.51076678]
[1750166071224,0.41068217,105650.0,105640.0,0.51076678]
[1750166071436,0.41068217,105650.0,105640.0,0.51085478]
[1750166072114,0.04028,105650.0,105640.0,0.51085478]
[1750166072349,0.38228663,105650.0,105640.0,0.51085478]
[1750166073055,0.38228654,105650.0,105640.0,0.51085478]
[1750166073288,0.39175121,105650.0,105640.0,0.51085478]
[1750166073528,0.34200654,105650.0,105640.0,0.51085478]
[1750166074209,0.33254196,105650.0,105640.0,0.51085478]
[1750166074689,0.32307756,105650.0,105640.0,0.60709654]
[1750166076307,0.33254196,105650.0,105640.0,0.60709654]
[1750166076518,0.34200654,105650.0,105640.0,0.60709654]
[1750166076871,0.33254196,105650.0,105640.0,0.60709654]
[1750166077324,0.34200654,105650.0,105640.0,0.60709654]
[1750166079143,0.33254196,105650.0,105640.0,0.60709654]
[1750166079996,0.0094644,105650.0,105640.0,0.60709654]
[1750166080215,0.33254196,105650.0,105640.0,0.60709654]
[1750166080887,0.32307756,105650.0,105640.0,0.60709654]
[1750166081098,0.33254205,105650.0,105640.0,0.60709654]
[1750166084652,0.26742303,105660.0,105650.0,0.28099912]
[1750166084875,0.59050059,105660.0,105650.0,0.28099912]
[1750166085921,0.59050059,105660.0,105650.0,0.2904637]
[1750166085922,0.40321393,105660.0,105650.0,0.2904637]
[1750166086437,0.59250032,105660.0,105650.0,0.2904637]
[1750166086698,0.38428503,105660.0,105650.0,0.32239154]
[1750166086908,0.59249987,105660.0,105650.0,0.46780696]
[1750166087722,0.58303627,105660.0,105650.0,0.45834229]
[1750166087976,0.58203627,105660.0,105650.0,0.46780714]
[1750166088173,0.58203627,105660.0,105650.0,0.4772719]
[1750166089014,0.58203627,105660.0,105650.0,0.46780714]
[1750166089187,0.58103627,105660.0,105650.0,0.46780714]
[1750166089609,0.58103627,105660.0,105640.0,0.27074145]
[1750166089610,0.21769885,105650.0,105640.0,0.27074145]
[1750166089789,0.5502409,105650.0,105640.0,0.42562181]
[1750166089987,0.55970611,105650.0,105640.0,0.43508765]
[1750166090440,0.55024162,105650.0,105640.0,0.43508765]
[1750166090775,0.55024162,105650.0,105640.0,0.49847706]
[1750166090959,0.55024162,105650.0,105640.0,0.34359706]
[1750166091237,0.52184707,105650.0,105640.0,0.002088]
[1750166091482,0.768656,105650.0,105640.0,0.004088]
[1750166091942,0.73862707,105650.0,105640.0,0.004088]
[1750166092396,0.73862707,105650.0,105640.0,8.8e-05]
[1750166092612,0.73962707,105650.0,105640.0,8.8e-05]
[1750166092875,0.41654951,105650.0,105640.0,8.8e-05]
[1750166093103,0.73962707,105650.0,105640.0,8.8e-05]
[1750166093319,0.74062707,105650.0,105640.0,8.8e-05]
[1750166095317,0.85526929,105650.0,105640.0,8.8e-05]
[1750166095995,1.20451617,105650.0,105640.0,8.8e-05]
[1750166096432,1.22715207,105650.0,105640.0,8.8e-05]
[1750166096883,0.90407451,105650.0,105640.0,8.8e-05]
[1750166097326,0.87404558,105650.0,105640.0,8.8e-05]
[1750166097675,0.85140968,105650.0,105640.0,8.8e-05]
[1750166098323,0.89164968,105650.0,105640.0,8.8e-05]
[1750166098516,0.9877989,105650.0,105640.0,8.8e-05]
[1750166101491,0.7926789,105650.0,105640.0,8.8e-05]
[1750166101714,0.82974968,105650.0,105640.0,8.8e-05]
[1750166103064,0.81520883,105650.0,105640.0,8.8e-05]
[1750166103957,0.87920883,105650.0,105640.0,8.8e-05]
[1750166104424,0.53331201,105650.0,105640.0,0.07255411]
[1750166104703,0.0114644,105650.0,105640.0,0.2902734]
[1750166104914,0.06116898,105650.0,105640.0,0.41475644]
[1750166105137,0.39371121,105650.0,105640.0,0.41475644]
[1750166105362,0.32507756,105650.0,105640.0,0.41475644]
[1750166105595,0.001,105650.0,105640.0,0.41475644]
[1750166106021,0.35146881,105660.0,105640.0,0.41475644]
[1750166106022,0.40117295,105660.0,105650.0,0.21769885]
[1750166106228,0.40117295,105660.0,105650.0,0.27829885]
[1750166107311,0.07809539,105660.0,105650.0,0.27829885]
[1750166107522,0.40117295,105660.0,105650.0,0.27829885]
[1750166108428,0.35146881,105660.0,105650.0,0.27829885]
[1750166108627,0.0497036,105660.0,105650.0,0.27829885]
[1750166109080,0.37268732,105670.0,105660.0,0.2622507]
[1750166109335,0.73600488,105670.0,105660.0,0.2622507]
[1750166109557,0.58116488,105670.0,105660.0,0.27171484]
[1750166110247,0.58116488,105670.0,105660.0,0.29064276]
[1750166110466,0.57151311,105670.0,105660.0,0.29064276]
[1750166110695,0.35421108,105680.0,105670.0,0.26443189]
[1750166110906,0.56221828,105680.0,105670.0,0.27389522]
[1750166111345,0.23914072,105680.0,105670.0,0.28335846]
[1750166111567,0.56221828,105680.0,105670.0,0.27389522]
[1750166112000,0.56221828,105680.0,105670.0,0.29282161]
[1750166112249,0.51990211,105680.0,105670.0,0.29282161]
[1750166112462,0.34209162,105680.0,105670.0,0.34949211]
[1750166112687,0.38233162,105680.0,105670.0,0.34949211]
[1750166112899,0.39179299,105680.0,105670.0,0.34949211]
[1750166113129,0.39279299,105680.0,105670.0,0.34949211]
[1750166113341,0.40325524,105680.0,105670.0,0.34949211]
[1750166113565,0.40325533,105680.0,105670.0,0.34949211]
[1750166114048,0.40225533,105680.0,105670.0,0.34949211]
[1750166114296,0.39279299,105680.0,105670.0,0.34949211]
[1750166114518,0.38333082,105680.0,105670.0,0.34949211]
[1750166114744,0.39279281,105680.0,105670.0,0.34949211]
[1750166114961,0.38333091,105680.0,105670.0,0.34949211]
[1750166115644,0.00108964,105680.0,105670.0,0.34949211]
[1750166115895,0.00108964,105680.0,105670.0,0.44573387]
[1750166116117,0.43166895,105700.0,105690.0,0.1986942]
[1750166116330,0.43214228,105700.0,105690.0,0.29401749]
[1750166116552,0.43214228,105700.0,105690.0,0.30347876]
[1750166117052,0.39190228,105700.0,105690.0,0.28455604]
[1750166117299,0.05970195,105700.0,105690.0,0.29401731]
[1750166117541,0.05970195,105700.0,105690.0,0.28171647]
[1750166117542,0.36379089,105700.0,105690.0,0.28171647]
[1750166117767,0.38271093,105700.0,105690.0,0.28171647]
[1750166118004,0.04171333,105700.0,105690.0,0.28171647]
[1750166118708,0.04271333,105700.0,105690.0,0.28171647]
[1750166118954,0.32555089,105700.0,105690.0,0.28171647]
[1750166119194,0.33401082,105700.0,105690.0,0.48605762]
[1750166119429,0.00047333,105700.0,105690.0,0.58329938]
[1750166119878,0.00047333,105700.0,105690.0,0.58229938]
[1750166120111,0.00047333,105700.0,105690.0,0.58529938]
[1750166120594,0.00047333,105700.0,105690.0,0.58729938]
[1750166121522,0.00047333,105700.0,105690.0,0.43189938]
[1750166122252,0.00047333,105700.0,105690.0,0.58717938]
[1750166122783,0.32355089,105700.0,105690.0,0.58717938]
[1750166123031,0.32355089,105700.0,105690.0,0.43189938]
[1750166123032,0.00047333,105700.0,105690.0,0.43189938]
[1750166123473,0.32355089,105700.0,105690.0,0.58737938]
[1750166123739,0.32355089,105700.0,105690.0,0.43189938]
[1750166124230,0.32355089,105700.0,105690.0,0.58741938]
[1750166124441,0.00047333,105700.0,105690.0,0.58741938]
[1750166125122,0.33301082,105700.0,105690.0,0.58741938]
[1750166125601,0.35193131,105700.0,105690.0,0.43189938]
[1750166125821,0.36139177,105700.0,105690.0,0.58749938]
[1750166126042,0.36139177,105700.0,105690.0,0.005]
[1750166126043,0.85476439,105700.0,105690.0,0.005]
[1750166126264,0.56171576,105700.0,105690.0,0.005]
[1750166126490,0.53168683,105700.0,105690.0,0.24345583]
[1750166126707,0.53168683,105700.0,105690.0,0.25291728]
[1750166126934,0.20860927,105700.0,105690.0,0.23845583]
[1750166127149,0.53168683,105700.0,105690.0,0.27811719]
[1750166127366,0.53168683,105700.0,105690.0,0.33384499]
[1750166127619,0.53168683,105700.0,105690.0,0.12568916]
[1750166127839,0.53168683,105700.0,105690.0,0.32438345]
[1750166128282,0.52222637,105700.0,105690.0,0.0615]
[1750166128530,0.52222637,105700.0,105690.0,0.25073266]
[1750166128756,0.52222637,105700.0,105690.0,0.26019411]
[1750166128973,0.52222637,105700.0,105690.0,0.25073266]
[1750166129185,0.52222637,105700.0,105690.0,0.26965583]
[1750166129407,0.52222637,105700.0,105690.0,0.27911728]
[1750166129621,0.53168683,105700.0,105690.0,0.28857864]
[1750166130073,0.00993397,105700.0,105690.0,0.36138265]
[1750166130293,0.54114738,105700.0,105690.0,0.36138265]
[1750166130524,0.54114738,105700.0,105690.0,0.32353721]
[1750166130747,0.54114738,105700.0,105690.0,0.26965574]
[1750166131447,0.54114738,105700.0,105690.0,0.26019429]
[1750166131683,0.19914881,105700.0,105690.0,0.0615]
[1750166131914,0.52222637,105700.0,105690.0,0.0615]
[1750166132631,0.52222637,105700.0,105690.0,0.26019429]
[1750166133746,0.52222637,105700.0,105690.0,0.10928307]
[1750166134439,0.52222637,105700.0,105690.0,0.0615]
[1750166134683,0.52222637,105700.0,105690.0,0.001]
[1750166138032,0.52222637,105700.0,105690.0,0.25353266]
[1750166138033,0.71842637,105700.0,105690.0,0.25353266]
[1750166138240,0.71842637,105700.0,105690.0,0.0643]
[1750166138468,0.71842637,105700.0,105690.0,0.26299429]
[1750166138694,0.71842637,105700.0,105690.0,0.2629942]
[1750166139145,0.71842637,105700.0,105690.0,0.25353266]
[1750166139353,0.71842637,105700.0,105690.0,0.26299429]
[1750166140021,0.71842637,105700.0,105690.0,0.0643]
[1750166140233,0.71842637,105700.0,105690.0,0.25353266]
[1750166140478,0.71842637,105700.0,105690.0,0.0643]
[1750166140688,0.56270637,105700.0,105690.0,0.0332]
[1750166141190,0.56270637,105700.0,105690.0,0.001]
[1750166141440,1.33794248,105700.0,105690.0,0.001]
[1750166141658,1.62298518,105700.0,105690.0,0.001]
[1750166142176,1.56447556,105700.0,105690.0,0.001]
[1750166144786,1.177298,105700.0,105690.0,0.001]
[1750166145907,0.981098,105700.0,105690.0,0.001]
[1750166146096,1.177218,105700.0,105690.0,0.001]
[1750166146365,1.50029556,105700.0,105690.0,0.001]
[1750166146610,1.70141456,105700.0,105690.0,0.001]
[1750166146849,1.64875576,105700.0,105690.0,0.001]
[1750166147084,1.67139107,105700.0,105690.0,0.001]
[1750166147524,1.57524185,105700.0,105690.0,0.001]
[1750166148506,1.72524185,105700.0,105690.0,0.001]
[1750166148741,1.78356492,105700.0,105690.0,0.001]
[1750166148973,1.75353599,105700.0,105690.0,0.001]
[1750166149217,1.72524185,105700.0,105690.0,0.001]
[1750166149465,1.51484185,105700.0,105690.0,0.001]
[1750166150341,1.31872185,105700.0,105690.0,0.001]
[1750166150563,1.51520185,105700.0,105690.0,0.001]
[1750166152232,1.51524185,105700.0,105690.0,0.001]
[1750166153008,1.31872185,105700.0,105690.0,0.001]
[1750166153541,1.54398685,105700.0,105690.0,0.0326]
[1750166153792,1.54398685,105700.0,105690.0,0.001]
[1750166154559,1.02406929,105700.0,105690.0,0.0326]
[1750166154802,1.02406929,105700.0,105690.0,0.001]
[1750166154803,1.54390685,105700.0,105690.0,0.001]
[1750166157418,1.57224099,105700.0,105690.0,0.0669]
[1750166157649,1.02406929,105700.0,105690.0,0.0669]
[1750166157891,1.20624844,105700.0,105690.0,0.0669]
[1750166159535,1.20620844,105700.0,105690.0,0.0669]
[1750166159788,1.20620844,105700.0,105690.0,0.1048037]
[1750166159789,0.92274714,105700.0,105690.0,0.1048037]
[1750166160026,0.94099183,105700.0,105690.0,0.0669]
[1750166160268,1.36031115,105700.0,105690.0,0.0669]
[1750166160505,1.56872303,105700.0,105690.0,0.001]
[1750166160749,1.55323495,105700.0,105690.0,0.001]
[1750166160979,1.63425268,105700.0,105690.0,0.001]
[1750166161204,1.81254682,105700.0,105690.0,0.001]
[1750166161438,0.18926686,105680.0,105670.0,0.0649]
[1750166161686,0.53873171,105670.0,105660.0,0.0658]
[1750166161923,0.53873171,105670.0,105660.0,0.09320319]
[1750166161924,0.91215242,105670.0,105660.0,0.09320319]
[1750166162155,1.23522998,105670.0,105660.0,0.0658]
[1750166162648,1.23522998,105670.0,105640.0,0.29338237]
[1750166162649,1.34097435,105670.0,105640.0,0.29338246]
[1750166162883,0.55024108,105650.0,105640.0,0.28391725]
[1750166163146,0.55024108,105650.0,105640.0,0.293383]
[1750166163398,0.55024108,105650.0,105640.0,0.357683]
[1750166163399,0.54077668,105650.0,105640.0,0.357683]
[1750166163633,0.54077668,105650.0,105640.0,0.42987873]
[1750166164091,0.54077668,105650.0,105640.0,0.43934439]
[1750166164292,0.54124971,105650.0,105640.0,0.43934439]
[1750166164582,0.54124971,105650.0,105640.0,0.43187873]
[1750166165064,0.54124971,105650.0,105640.0,0.44134439]
[1750166165319,0.54124953,105650.0,105640.0,0.33737179]
[1750166165571,0.56024416,105650.0,105640.0,0.36576922]
[1750166165849,0.56024416,105650.0,105640.0,0.36776922]
[1750166166696,0.56024416,105650.0,105640.0,0.35830356]
[1750166167020,0.55077949,105650.0,105640.0,0.34883772]
[1750166167287,0.55077949,105650.0,105640.0,0.36776913]
[1750166167807,0.55077949,105650.0,105640.0,0.3772347]
[1750166168050,0.35200998,105650.0,105640.0,0.37723416]
[1750166168280,0.36147393,105650.0,105640.0,0.37723416]
[1750166168544,0.38040408,105650.0,105640.0,0.36776868]
[1750166168741,0.35194451,105650.0,105640.0,0.37723416]
[1750166169461,0.34247966,105650.0,105640.0,0.37723416]
[1750166169957,0.00047303,105650.0,105640.0,0.47347592]